Cogmind - Beta 9.2 @@@ ROGUE MODE // 2019.11.14 @ 03:15:03 Player: Suslik Result: Destroyed by as-38189 with Assembled Blade Performance ------------- Evolutions (0) 0 Regions Visited (3) 600 Robots Destroyed (50) 250 Value Destroyed (852) 852 Prototype IDs (4) 80 Alien Tech Used (0) 0 Bonus (25) 25 TOTAL SCORE: 1807 Bonus ------- Follower Combat Kills 85 Friendly Fire -60 Cogmind --------- Core Integrity 0/250 Matter 195/300 Energy 299/310 System Corruption 3% Temperature Cool (7) Movement Core (950) Ox18 Location -10/Exiles Parts ------- > --- POWER (1) -------- Reinforced Fission Core > --- PROPULSION (2) --- (None) > --- UTILITY (2) ------ Large Storage Unit Large Storage Unit > --- WEAPON (2) ------- Maul > --- INVENTORY (16) --- Experimental Heat Sink Gravity Neutralizing Apparatus Improved Terrain Scanner Advanced Weapon Cycler 8R-AWN's Armor/EX Small Laser 8R-AWN's Boregun 8R-AWN's Boregun Peak State ------------ > --- POWER ------------ Reinforced Fission Core > --- PROPULSION ------- Wheel Wheel > --- UTILITY ---------- Experimental Heat Sink Large Storage Unit > --- WEAPON ----------- 8R-AWN's Boregun Maul > --- INVENTORY -------- Gravity Neutralizing Apparatus Improved Terrain Scanner Terrain Scan Processor Advanced Weapon Cycler 8R-AWN's Armor/EX 8R-AWN's Boregun Grenade Launcher Grenade Launcher [Rating: 33] Favorites ----------- Power Reinforced Fission Core Engine Ion Engine Power Core Reinforced Fission Core Propulsion Light Treads Treads Light Treads Leg Aluminum Leg Wheel Wheel Utility Large Storage Unit Device Improved Terrain Scanner Storage Large Storage Unit Processor Terrain Scan Processor Weapon Maul Energy Gun Small Laser Ballistic Gun 8R-AWN's Boregun Ballistic Cannon Light Cannon Launcher Grenade Launcher Impact Weapon Maul Build | -11 -10 -10 -10 ------- Run | Scr Mat Min Exi Slots Evolved . | . . . . Power . | . . . . Propulsion . | . . . . Utility . | . . . . Weapon . | . . . . Parts Attached 38 | 2 12 21 3 Power 1 | . 1 . . Engine . | . . . . Core 1 | . 1 . . Reactor . | . . . . Propulsion 5 | 2 . 3 . Treads 2 | 2 . . . Leg . | . . . . Wheel 3 | . . 3 . Hover . | . . . . Flight . | . . . . Utility 12 | . 3 9 . Device 5 | . . 5 . Storage 5 | . 3 2 . Processor 2 | . . 2 . Hackware . | . . . . Protection . | . . . . Artifact . | . . . . Weapon 20 | . 8 9 3 Energy Gun 6 | . 3 3 . Energy Cannon . | . . . . Ballistic Gun 4 | . 1 2 1 Ballistic Cannon 1 | . 1 . . Launcher 5 | . . 3 2 Special Weapon . | . . . . Impact Weapon 4 | . 3 1 . Slashing Weapon . | . . . . Piercing Weapon . | . . . . Special Melee Weapon . | . . . . Unidentified Prototypes 4 | . 1 3 . Parts Lost 9 | . 1 4 4 Power . | . . . . Propulsion 4 | . . 2 2 Utility . | . . . . Weapon 5 | . 1 2 2 Highest Loss Streak 4 | . 1 2 4 Average Slot Usage (%) 97 | . 95 98 89 Core 13 | . 11 14 14 Treads 13 | . 28 9 . Wheel 13 | . . 17 17 Device 5 | . . 6 . Storage 20 | . 25 19 28 Processor 1 | . . 2 . Energy Gun 5 | . 12 3 . Ballistic Gun 10 | . 11 9 3 Launcher 1 | . . 2 10 Impact Weapon 9 | . 1 11 14 Naked Turns . | . . . . Heaviest Build 62 | 13 62 62 59 Greatest Support 40 | 40 40 40 20 Greatest Overweight (x) 6 | . 1 6 5 Average Overweight (x) 2 | . . 2 2 Largest Inventory Capacity 16 | 6 16 16 16 Average Capacity 12 | 6 12 12 16 Most Carried 16 | 6 16 16 10 Average Carried 10 | 5 7 11 9 Final Capacity 16 | 6 16 16 16 Final Carried 16 | 4 16 10 9 Class Distribution -------------------- 88% | Mutant 11% | Scavenger-Mutant Dominant Class ---------------- Mutant | -10/Materials Mutant | -10/Mines Mutant | -10/Exiles Resources | -11 -10 -10 -10 ----------- Run | Scr Mat Min Exi Matter Collected 1156 | 200 409 547 . Remotely . | . . . . Salvage Created 1942 | . 537 1388 17 Parts 66 | . 26 40 . Haulers Intercepted 1 | . 1 . . Recyclers Shooed 4 | . 4 . . Parts Field Recycled . | . . . . Retrieved Matter . | . . . . Parts Self-Destructed . | . . . . Prevented . | . . . . Kills | -11 -10 -10 -10 ------- Run | Scr Mat Min Exi Combat Hostiles Destroyed 21 | . 5 13 3 Guns 10 | . 5 5 . AOE 10 | . . 7 3 Classes Destroyed 8 | . 6 1 1 Worker 6 | . 1 5 . Builder 5 | . 2 3 . Tunneler 7 | . . 7 . Hauler 1 | . 1 . . Recycler 9 | . 1 8 . Operator 1 | . 1 . . Grunt 17 | . 4 13 . Assembled 3 | . . . 3 Best Kill Streak 5 | . 3 5 3 Combat Bots Only 3 | . 3 2 3 Max Kills in Single Turn 2 | . 1 2 1 Gunslinging . | . . . . Exploded 2 | . . 2 1 Melee . | . . . . Uniques/NPCs Destroyed 1 | . 1 . . 8R-AWN (-10/Materials) Combat | -11 -10 -10 -10 -------- Run | Scr Mat Min Exi Damage Taken 1367 | . 134 744 489 Core 253 | . . 117 136 Absorbed by Shields . | . . . . Core Remaining (%) 100 | 100 . . . Volleys Fired 166 | . 104 51 11 Largest 2 | . 2 2 1 Hottest 90 | . 90 60 30 Shots Fired 245 | . 166 68 11 Gun 222 | . 164 53 5 Cannon 2 | . 2 . . Launcher 21 | . . 15 6 Special . | . . . . Kinetic 101 | . 66 30 5 Thermal 24 | . 1 23 . Explosive 21 | . . 15 6 Electromagnetic 99 | . 99 . . Robot Hit Streak 19 | . 19 7 3 Robot Miss Streak 4 | . 4 2 1 Penetration Max 2 | . 2 . . Secondary Targets 1 | . . 1 . Max Gunslinging Chain 1 | . . 1 . Shots Hit Robots 189 | . 110 76 3 Core Hits 87 | . 45 37 5 Critical Hits 25 | . 20 4 1 Critical Kills 6 | . 3 3 . Critical Parts Destroyed 7 | . 6 . 1 Melee Attacks 54 | . 6 48 . Impact 54 | . 6 48 . Slashing . | . . . . Piercing . | . . . . Sneak Attacks 23 | . 1 22 . Combat Hostiles . | . . . . Follow-up Attacks . | . . . . Damage Inflicted 4370 | . 1222 3000 148 Guns 1544 | . 1079 407 58 Cannons 18 | . 18 . . Explosions 755 | . . 665 90 Melee 2032 | . 104 1928 . Ramming 21 | . 21 . . Kinetic 1146 | . 867 221 58 Thermal 186 | . . 186 . Explosive 755 | . . 665 90 Electromagnetic 230 | . 230 . . Impact 2032 | . 104 1928 . Slashing . | . . . . Piercing . | . . . . Highest Corruption . | . . . . Average Corruption . | . . . . Corruption Purged . | . . . . Overload Shots . | . . . . Overflow Damage 730 | . 4 726 . Projectiles 3 | . 3 . . Explosions . | . . . . Melee 727 | . 1 726 . Knockbacks 15 | . . 15 . Impact 13 | . . 13 . Kinetic . | . . . . Secondary 2 | . . 2 . Self-Inflicted Damage 72 | . . 72 . Shots 2 | . . 2 . Rammed 2 | . 2 . . Targets Rammed 2 | . 2 . . Kicked . | . . . . Crushed . | . . . . Highest Temperature 330 | . 325 330 20 Average Temperature 134 | . 159 90 8 Received Heat Transfer 378 | . . 378 . Effects 5 | . 5 . . Energy Bleed 2 | . 2 . . Interference 3 | . 3 . . Siege Activations . | . . . . Robots Corrupted . | . . . . Combat Hostiles . | . . . . Parts Fried 19 | . . 19 . Impact Corruptions 34 | . 2 32 . Robots Melted . | . . . . Combat Hostiles . | . . . . Parts Melted 3 | . . 3 . Heat Transferred 425 | . . 425 . Parts Sabotaged . | . . . . Parts Stolen . | . . . . Parts Stripped . | . . . . Power Chain Reactions . | . . . . Missiles Intercepted . | . . . . Alert | -11 -10 -10 -10 ------- Run | Scr Mat Min Exi Peak Influence 156 | . 83 156 . Average Influence 25 | . 40 21 . Maximum Alert Level . | . . . . Low Security (%) 100 | 100 100 100 . Level 1 . | . . . . Level 2 . | . . . . Level 3 . | . . . . Level 4 . | . . . . Level 5 . | . . . . High Security . | . . . . Max Security . | . . . . Squads Dispatched 5 | . 5 . . Investigation 3 | . 3 . . Extermination . | . . . . Reinforcement 2 | . 2 . . Assault . | . . . . Garrison . | . . . . Intercept . | . . . . Construction Impeded . | . . . . Haulers Reinforced . | . . . . Stealth | -11 -10 -10 -10 --------- Run | Scr Mat Min Exi Distress Signals 2 | . 2 . . Communications Jammed . | . . . . Distress Signals . | . . . . Times Spotted 39 | . 15 17 7 Peak Tracking Total 8 | . 3 2 8 Tactical Retreats 3 | . 2 1 . Traps | -11 -10 -10 -10 ------- Run | Scr Mat Min Exi Traps Triggered 1 | . 1 . . Indirectly . | . . . . Trap Hack Attempts . | . . . . Triggered . | . . . . Disarmed . | . . . . Reprogrammed . | . . . . Reused . | . . . . Traps Extracted . | . . . . Installed . | . . . . Triggered . | . . . . Machines | -11 -10 -10 -10 ---------- Run | Scr Mat Min Exi Machines Disabled 6 | . 2 1 3 Max in Single Turn 1 | . 1 1 1 Machines Sabotaged . | . . . . Garrisons Compromised . | . . . . Overloaded Fab Kills . | . . . . Fab Network Shutdowns . | . . . . Hacking | -11 -10 -10 -10 --------- Run | Scr Mat Min Exi Machines Accessed 5 | . 4 1 . Terminals 5 | . 4 1 . Fabricators . | . . . . Repair Stations . | . . . . Recycling Units . | . . . . Scanalyzers . | . . . . Garrison Access . | . . . . Total Hacks 13 | . 9 4 . Successful 4 | . 3 1 . Failed 8 | . 5 3 . Catastrophic 2 | . 1 1 . Database Lockouts 1 | . 1 . . Manual 13 | . 9 4 . Terminals 13 | . 9 4 . Fabricators . | . . . . Repair Stations . | . . . . Recycling Units . | . . . . Scanalyzers . | . . . . Garrison Access . | . . . . Terminal Hacks 4 | . 3 1 . Part Schematic 1 | . 1 . . Branch Access Points 1 | . . 1 . Hauler Manifests 1 | . 1 . . Registered Components 1 | . 1 . . Fabricator Hacks . | . . . . Repair Station Hacks . | . . . . Recycling Unit Hacks . | . . . . Scanalyzer . | . . . . Garrison Access Hacks . | . . . . Unauthorized Hacks . | . . . . Terminals . | . . . . Fabricators . | . . . . Repair Stations . | . . . . Recycling Units . | . . . . Scanalyzers . | . . . . Garrison Access . | . . . . Data Cores Recovered . | . . . . Used . | . . . . Hacking Detections 3 | . 2 1 . Full Trace Events 2 | . 1 1 . Feedback Events . | . . . . Feedback Blocked . | . . . . Robot Schematics Acquired . | . . . . Robots Built . | . . . . Matter . | . . . . Time . | . . . . Total Robot Build Rating . | . . . . Part Schematics Acquired 1 | . 1 . . Parts Built . | . . . . Matter . | . . . . Time . | . . . . Total Part Build Rating . | . . . . Parts Repaired . | . . . . Time . | . . . . Parts Recycled . | . . . . Recycled Matter . | . . . . Retrieved Matter . | . . . . Retrieved Components . | . . . . Parts Scanalyzed . | . . . . Part Schematics Acquired . | . . . . Parts Damaged . | . . . . Bothacking | -11 -10 -10 -10 ------------ Run | Scr Mat Min Exi Used RIF Installer . | . . . . Robots Hacked . | . . . . Non-combat . | . . . . Combat . | . . . . Robot Hacks Applied . | . . . . Relay Couplers Released . | . . . . Robots Rewired . | . . . . Allies Hacked . | . . . . Hacks Repelled . | . . . . Allies | -11 -10 -10 -10 -------- Run | Scr Mat Min Exi Total Allies 1 | . . 1 . Largest Group 1 | . . 1 . Highest-Rated Group 31 | . . 31 . Highest-Rated Ally 31 | . . 31 . Total Orders . | . . . . Ally Attacks 8 | . . 8 . Total Damage 124 | . . 124 . Kills 3 | . . 3 . Allies Corrupted . | . . . . Allies Melted . | . . . . Intel | -11 -10 -10 -10 ------- Run | Scr Mat Min Exi Robot Analysis Total . | . . . . Derelict Logs Recovered 1 | . . 1 . Drone Launches . | . . . . Drone Recoveries . | . . . . Exploration | -11 -10 -10 -10 ------------- Run | Scr Mat Min Exi Turns Passed 5605 | 5 1245 4309 46 Spaces Moved 2233 | 1 453 1759 20 Core . | . . . . Treads 1089 | 1 453 635 . Legs . | . . . . Wheels 1144 | . . 1124 20 Hover . | . . . . Flight . | . . . . Fastest Speed 90 | 160 160 90 100 Average Speed 143 | 160 168 137 101 Slowest Speed 180 | 160 180 180 130 Overloaded Moves . | . . . . Propulsion Burnouts . | . . . . Robots Hopped . | . . . . Cave-ins Triggered . | . . . . Exploration Rate (%) 42 | 3 61 99 8 Regions Visited 3 Branch Regions 2 Pre-discovered Areas . | . . . . Known Exits Taken . | . . . . Unknown Exits Taken 3 | 1 1 1 . Scrap Searched 2 | . . 2 . Spaces Dug 12 | . 5 7 . Terrain Destroyed 174 | . 22 117 35 Melee 10 | . 3 7 . Projectile 23 | . 19 2 2 AOE 141 | . . 108 33 Actions | -11 -10 -10 -10 --------- Run | Scr Mat Min Exi Total 4282 | 4 753 3491 34 Wait 1750 | . 161 1589 . Move 2230 | . 452 1758 20 Hop . | . . . . Pick Up 21 | . 11 10 . Fast Attach 9 | . 4 5 . Attach 6 | . . 5 1 Detach 3 | . . 3 . Swap 23 | 2 8 11 2 Drop 18 | 2 5 11 . Fire 166 | . 104 51 11 Melee 54 | . 6 48 . Ram . | . . . . Kick . | . . . . Crush 2 | . 2 . . Escape Stasis . | . . . . Rewire . | . . . . Trap . | . . . . Miscellaneous . | . . . . Route ------- -11/Scrapyard -10/Materials (discovered 3 exits: [*Mat x2] / *Min) -10/Mines (discovered 3 exits: [*Mat x2] / [*Exi]) -10/Exiles History --------- Turn | Location | Event 6 | -11/Scrapyard | Discovered new exit (range 0) 6 | -11/Scrapyard | Entered Materials 117 | -10/Materials | Met 8R-AWN 125 | -10/Materials | Central database locked down 139 | -10/Materials | Discovered new exit (range 12) 227 | -10/Materials | Found Prototype Ballistic Gun 227 | -10/Materials | Identified 8R-AWN's Boregun 234 | -10/Materials | Discovered new exit (range 10) 303 | -10/Materials | Discovered new exit (range 15) 318 | -10/Materials | Build established: Mutant 772 | -10/Materials | Attacked by 8R-AWN 1165 | -10/Materials | Destroyed 8R-AWN 1170 | -10/Materials | Found 8R-AWN's Boregun 1173 | -10/Materials | Found Prototype Protection 1176 | -10/Materials | Found Prototype Processor 1251 | -10/Materials | Entered Mines 1394 | -10/Mines | Learned location of 1 exit from Materials 1414 | -10/Mines | Discovered new exit (range 5) 1491 | -10/Mines | Received a Mining Laser from a helpful Derelict 2026 | -10/Mines | Discovered new exit (range 14) 4174 | -10/Mines | Identified Exp. Targeting Computer 4798 | -10/Mines | Build established: Scavenger-Mutant 5052 | -10/Mines | Discovered new exit (range 9) 5434 | -10/Mines | Build established: Mutant 5560 | -10/Mines | Entered Exiles 5560 | -10/Exiles | Attacked by the Exiles 5578 | -10/Exiles | Core integrity fell below 50% 5600 | -10/Exiles | Core integrity fell below 20% 5606 | -10/Exiles | Destroyed by as-38189 with Assembled Blade Last Messages --------------- 05560_ EXILES: Hostile robot within lab perimeter. Defensive protocols time, folks! LOCATION=UNKNOWN GOAL=ESCAPE 05574_ Rigged Fission Core explodes. 05574_ Grenade Launcher destroyed. 05582_ Wheel destroyed. 05584_ Machine disabled. 05584_ as-21204 destroyed. 05588_ as-11861 destroyed. 05590_ Wheel destroyed. 05592_ The unstable cave ceiling collapses. 05592_ as-18049 destroyed. 05597_ HV Slug penetrates as-26220. 05601_ as-26220 suffers critical hit. 05601_ Destroyed Asb. Hover Unit. 05603_ HV Slug penetrates Earth. 05606_ as-26220 destroyed. 05606_ Grenade Launcher destroyed. 05606_ System corrupted by crushing effect (+3). Map ----- +----------------------------------------------------+ | ?????????????????????????????????????????????????? | | ?????????????????????????????????????????????????? | | ?????????????????????????????????????????????????? | | ?????????????????????????????????????????????????? | | ?????????????????????????????????????????????????? | | ?????????????????????????????????????????????????? | | ?????????????????????????????????????????????????? | | ?????????????????????????????????????????????????? | | ?????????????????????????????????????????????????? | | ????????????????????????????????? ???????????????? | | ????????????????????????????????? ?????????????? | | ????????????????????????????????# #????????????? | | ??????????????????????????????## ##???????????? | | ??????????????????????????????# #???????????? | | ??????????????????????????????# ????????????? | | ?????????????????????????????## ?????????????? | | ????????????? #####?????????## #?????????????? | | ????????????? ????????# #?????????????? | | ???????????? #?????### #??????????????? | | ???????????? # ##?### #??????????????? | | ???????????? ""## #???????????????? | | ???????????a%% * ##??????????????? | | ???????????# * #??????????????? | | ????????????# ##?????????????? | | ????????????# aa ###???????????? | | ????????????# @ ###?????????? | | ?????????????????# ########## ##????????? | | ????????????????????????????### #????????? | | ??????????????????????????????### #????????? | | ????????????????????????????????### #????????? | | ?????????????????????????????????#" ##???????? | | ?????????????????????????????????#### ###?????? | | ????????????????????????????????????# ##????? | | ????????????????????????????????????## ###??? | | ?????????????????????????????????????### #??? | | ???????????????????????????????????????# ##??? | | ???????????????????????????????????????## ##???? | | ????????????????????????????????????????#####????? | | ?????????????????????????????????????????????????? | | ?????????????????????????????????????????????????? | | ?????????????????????????????????????????????????? | | ?????????????????????????????????????????????????? | | ?????????????????????????????????????????????????? | | ?????????????????????????????????????????????????? | | ?????????????????????????????????????????????????? | | ?????????????????????????????????????????????????? | | ?????????????????????????????????????????????????? | | ?????????????????????????????????????????????????? | | ?????????????????????????????????????????????????? | | ?????????????????????????????????????????????????? | +----------------------------------------------------+ Best States ------------- Heat Dissipation 25 Energy Generation 19 Energy Capacity 310 Matter Stores 300 Matter Capacity 300 Sight Range 16 Terrain Scan Range 16 Terrain Scan Density 85 Evasion (%) 42 Recoil Reduction 2 Item Schematics ----------------- Hcp. Storage Unit | -10/Materials | Hacked Robot Schematics ------------------ None Fabricated ------------ Nothing Alien Tech Used ----------------- None Achievements -------------- None Challenges ------------ None Game ------ Seed MyomerExplosiveStorage Manual? 0 Play Time 00:26:33 Cumulative 201.0 hours Start 2019.11.14 @ 02:47:02 End 2019.11.14 @ 03:15:03 Sessions 1 Manual Loads 0 Difficulty Rogue Special Mode None Game No. 177 Rogue 167 Adventurer 10 Explorer 0 Win Type - Total 4 Types 3/0/0/1/0/0/0 Lore% 66 Gallery% 82 Achievement% 65 Wizard Run 0 Options --------- ASCII 0 Keyboard 1 Movement Numpad Keybinds 0 Fullscreen 2 Font 18/SmallcapsGlow Map View 76x50 Tactical HUD 1 Map Filters NONE Filters NONE Steam 1 RUN: 6d002f14-a65f-45ff-9b42-4bf4006c7fbe